Workbook

Sheet 车辆2021年 (hidden)
A1: 北京华新凯业物资再生有限公司2021年报废车辆管理台账
A2: 序号 | B2: 车辆类别 | C2: 单位 | D2: 前期贮存量 | E2: 回收量 | F2: 处置量 | G2: 贮存量
A3: 1 | B3: 货车 | C3: 辆 | D3: 15 | E3: 901 | F3: 900 | G3: 16
A4: 2 | B4: 客车 | C4: 辆 | D4: 308 | E4: 9490 | F4: 8786 | G4: 1012
A5: 3 | B5: 其他 | C5: 辆 | D5: 6 | E5: 8283 | F5: 8277 | G5: 12
B6: 总计 | C6: 辆 | D6: 329 | E6: 18674 | F6: 17963 | G6: 1040

Sheet 2025年1季度固体废物管理台账 (hidden)
A1: 北京华新凯业物资再生有限公司2025年1季度固体废物管理台账
A2: 序号 | B2: 物料名称 | C2: 库存单位 | D2: 前期贮存量 | E2: 产生量 | F2: 处理量 | G2: 流向 | H2: 贮存量 | I2: 属性
A3: 1 | B3: 废锂电池 | C3: 吨 | D3: 11.3 | E3: 5.38 | F3: 5.87 | G3: 委托外单位利用 | H3: =D3+E3-F3 -> 10.81
A4: 2 | B4: 废钢铁 | C4: 吨 | D4: 121.5 | E4: 6504.34 | F4: 6007.77 | G4: 委托外单位利用 | H4: 618.07
A5: 3 | B5: 废铝 | C5: 吨 | D5: 65.6 | E5: 367.71 | F5: 341.07 | G5: 委托外单位利用 | H5: 92.24
A6: 4 | B6: 废配件 | C6: 个 | D6: 17212 | E6: 18355 | F6: 24305 | G6: 委托外单位利用 | H6: 11262
A7: 5 | B7: 废轮胎 | C7: 吨 | D7: 4.06 | E7: 6.96 | F7: 8.82 | G7: 委托外单位利用 | H7: 2.2
A8: 6 | B8: 废塑料 | C8: 吨 | D8: 8.91 | E8: 114.53 | F8: 103.84 | G8: 委托外单位利用 | H8: 19.6
A9: 7 | B9: 废铜 | C9: 吨 | D9: 39.31 | E9: 138.39 | F9: 153.42 | G9: 委托外单位利用 | H9: 24.28
A10: 8 | B10: 废橡胶 | C10: 吨 | D10: 6.32 | E10: 6.67 | F10: 6.76 | G10: 委托外单位利用 | H10: 6.23
A11: 9 | B11: 废杂料 | C11: 吨 | D11: 5.11 | E11: 1056.02 | F11: 1054.23 | G11: 委托外单位利用 | H11: 6.9
A12: 10 | B12: 废铅酸蓄电池 | C12: 吨 | D12: 33 | E12: =F12+H12-D12 -> 37.94 | F12: 32.97 | G12: 委托外单位利用 | H12: 37.97 | I12: 危废 | J12: 原上报时结存量填写的37.97，应为37.79
A13: 11 | B13: 废机油 | C13: 吨 | D13: 8.1 | E13: 9.9 | F13: 11.42 | G13: 委托外单位处置 | H13: 6.58 | I13: 危废
A14: 12 | B14: 废三元 | C14: 吨 | D14: 1.05 | E14: 1.62 | F14: 0 | G14: 委托外单位利用 | H14: 2.67 | I14: 危废
A15: 13 | B15: 其他危废 | C15: 吨 | D15: 0.4 | E15: 0.52 | F15: 0 | G15: 委托外单位处置 | H15: 0.92 | I15: 危废
A16: 14 | B16: 废线路板 | C16: 吨 | D16: 6.24 | E16: 2.86 | F16: 0 | G16: 委托外单位处置 | H16: 9.1 | I16: 危废
A17: 15 | B17: 废防冻液 | C17: 吨 | D17: 4.5 | E17: 0.93 | F17: 0 | G17: 委托外单位处置 | H17: 5.43 | I17: 危废

Sheet 车辆2025年1季度 (hidden)
A1: 北京华新凯业物资再生有限公司2025年1季度报废车辆管理台账
A2: 序号 | B2: 车辆类别 | C2: 单位 | D2: 前期贮存量 | E2: 回收量 | F2: 处置量 | G2: 贮存量
A3: 1 | B3: 货车 | C3: 辆 | D3: 18 | E3: 611 | F3: 601 | G3: =D3+E3-F3 -> 28
A4: 2 | B4: 客车 | C4: 辆 | D4: 561 | E4: 2065 | F4: 2329 | G4: 297
A5: 3 | B5: 其他 | C5: 辆 | D5: 144 | E5: 392 | F5: 448 | G5: 88
B6: 总计 | C6: 辆 | D6: =SUM(D3:D5) -> 723 | E6: 3068 | F6: 3378 | G6: 413
B7: 摩托车 | C7: 辆 | D7: 138 | E7: 362 | F7: 417 | G7: 83
B8: 轮式或者履带式工程机械 | C8: 辆 | D8: 0 | E8: 1 | F8: 1 | G8: 0
B9: 汽车 | C9: 辆 | D9: =D6-D7 -> 585 | E9: =E6-E7 -> 2706 | F9: =F6-F7 -> 2961 | G9: =G6-G7 -> 330
D26: a

Sheet 2025年2季度固体废物管理台账
A1: 北京华新凯业物资再生有限公司2025年2季度固体废物管理台账
A2: 序号 | B2: 物料名称 | C2: 库存单位 | D2: 前期贮存量 | E2: 产生量 | F2: 处理量 | G2: 流向 | H2: 贮存量 | I2: 属性
A3: 1 | B3: 废锂电池 | C3: 吨 | D3: ='2025年1季度固体废物管理台账'!H3 -> 10.81 | E3: 129.54 | F3: 140.35 | G3: 委托外单位利用 | H3: =D3+E3-F3 -> 0
A4: 2 | B4: 废钢铁 | C4: 吨 | D4: ='2025年1季度固体废物管理台账'!H4 -> 618.07 | E4: 7099.98 | F4: 7392.36 | G4: 委托外单位利用 | H4: =D4+E4-F4 -> 325.69
A5: 3 | B5: 废铝 | C5: 吨 | D5: ='2025年1季度固体废物管理台账'!H5 -> 92.24 | E5: 424.23 | F5: 477.67 | G5: 委托外单位利用 | H5: 38.8
A6: 4 | B6: 废配件 | C6: 个 | D6: ='2025年1季度固体废物管理台账'!H6 -> 11262 | E6: 26507 | F6: 25494 | G6: 委托外单位利用 | H6: 12275
A7: 5 | B7: 废轮胎 | C7: 吨 | D7: ='2025年1季度固体废物管理台账'!H7 -> 2.2 | E7: 0 | F7: 0 | G7: 委托外单位利用 | H7: 2.2
A8: 6 | B8: 废塑料 | C8: 吨 | D8: ='2025年1季度固体废物管理台账'!H8 -> 19.6 | E8: 167.2 | F8: 168.92 | G8: 委托外单位利用 | H8: 17.88
A9: 7 | B9: 废铜 | C9: 吨 | D9: ='2025年1季度固体废物管理台账'!H9 -> 24.28 | E9: 217.24 | F9: 221.81 | G9: 委托外单位利用 | H9: 19.71
A10: 8 | B10: 废橡胶 | C10: 吨 | D10: ='2025年1季度固体废物管理台账'!H10 -> 6.23 | E10: 13.67 | F10: 14.97 | G10: 委托外单位利用 | H10: 4.93
A11: 9 | B11: 废杂料 | C11: 吨 | D11: ='2025年1季度固体废物管理台账'!H11 -> 6.9 | E11: 871.2 | F11: 865.82 | G11: 委托外单位利用 | H11: 12.28
A12: 10 | B12: 废铅酸蓄电池 | C12: 吨 | D12: 37.79 | E12: 61.85 | F12: =35.85+36.79 -> 72.64 | G12: 委托外单位利用 | H12: 27 | I12: 危废
A13: 11 | B13: 废机油 | C13: 吨 | D13: ='2025年1季度固体废物管理台账'!H13 -> 6.58 | E13: 11.21 | F13: =7.98+6.98 -> 14.96 | G13: 委托外单位处置 | H13: 2.83 | I13: 危废
A14: 12 | B14: 废三元 | C14: 吨 | D14: ='2025年1季度固体废物管理台账'!H14 -> 2.67 | E14: 12.9 | F14: 15.34 | G14: 委托外单位利用 | H14: 0.23 | I14: 危废
A15: 13 | B15: 其他危废 | C15: 吨 | D15: ='2025年1季度固体废物管理台账'!H15 -> 0.92 | E15: 0 | F15: 0 | G15: 委托外单位处置 | H15: 0.92 | I15: 危废
A16: 14 | B16: 废线路板 | C16: 吨 | D16: ='2025年1季度固体废物管理台账'!H16 -> 9.1 | E16: 5.29 | F16: 13.01 | G16: 委托外单位处置 | H16: 1.38 | I16: 危废
A17: 15 | B17: 废防冻液 | C17: 吨 | D17: ='2025年1季度固体废物管理台账'!H17 -> 5.43 | E17: 18.58 | F17: =9.23+10.55 -> 19.78 | G17: 委托外单位处置 | H17: 4.23 | I17: 危废

Sheet 车辆2025年2季度
A1: 北京华新凯业物资再生有限公司2025年2季度报废车辆管理台账
A2: 序号 | B2: 车辆类别 | C2: 单位 | D2: 前期贮存量 | E2: 回收量 | F2: 处置量 | G2: 贮存量
A3: 1 | B3: 货车 | C3: 辆 | D3: 28 | E3: 1168 | F3: 1151 | G3: =D3+E3-F3 -> 45
A4: 2 | B4: 客车 | C4: 辆 | D4: 297 | E4: 3024 | F4: 2852 | G4: =D4+E4-F4 -> 469
A5: 3 | B5: 其他 | C5: 辆 | D5: 88 | E5: 857 | F5: 778 | G5: 167
B6: 总计 | C6: 辆 | D6: =SUM(D3:D5) -> 413 | E6: 5049 | F6: 4781 | G6: 681
B7: 摩托车 | C7: 辆 | D7: 83 | E7: 787 | F7: 710 | G7: 160
B8: 轮式或者履带式工程机械 | C8: 辆 | D8: 5 | E8: 51 | F8: 49 | G8: 7
B9: 汽车 | C9: 辆 | D9: =D6-D7-D8 -> 325 | E9: 4211 | F9: 4022 | G9: 514
D26: a

Sheet 2025年3季度固体废物管理台账 (hidden)
A1: 北京华新凯业物资再生有限公司2025年3季度固体废物管理台账
A2: 序号 | B2: 物料名称 | C2: 库存单位 | D2: 前期贮存量 | E2: 产生量 | F2: 处理量 | G2: 流向 | H2: 贮存量 | I2: 属性
A3: 1 | B3: 废锂电池 | C3: 吨 | D3: ='2025年2季度固体废物管理台账'!H3 -> 0 | G3: 委托外单位利用 | H3: =D3+E3-F3 -> 0
A4: 2 | B4: 废钢铁 | C4: 吨 | D4: ='2025年2季度固体废物管理台账'!H4 -> 325.69 | G4: 委托外单位利用 | H4: 325.69
A5: 3 | B5: 废铝 | C5: 吨 | D5: ='2025年2季度固体废物管理台账'!H5 -> 38.8 | G5: 委托外单位利用 | H5: 38.8
A6: 4 | B6: 废配件 | C6: 个 | D6: ='2025年2季度固体废物管理台账'!H6 -> 12275 | G6: 委托外单位利用 | H6: 12275
A7: 5 | B7: 废轮胎 | C7: 吨 | D7: ='2025年2季度固体废物管理台账'!H7 -> 2.2 | G7: 委托外单位利用 | H7: 2.2
A8: 6 | B8: 废塑料 | C8: 吨 | D8: ='2025年2季度固体废物管理台账'!H8 -> 17.88 | G8: 委托外单位利用 | H8: 17.88
A9: 7 | B9: 废铜 | C9: 吨 | D9: ='2025年2季度固体废物管理台账'!H9 -> 19.71 | G9: 委托外单位利用 | H9: 19.71
A10: 8 | B10: 废橡胶 | C10: 吨 | D10: ='2025年2季度固体废物管理台账'!H10 -> 4.93 | G10: 委托外单位利用 | H10: 4.93
A11: 9 | B11: 废杂料 | C11: 吨 | D11: ='2025年2季度固体废物管理台账'!H11 -> 12.28 | G11: 委托外单位利用 | H11: 12.28
A12: 10 | B12: 废铅酸蓄电池 | C12: 吨 | D12: ='2025年2季度固体废物管理台账'!H12 -> 27 | G12: 委托外单位利用 | H12: 37.97 | I12: 危废
A13: 11 | B13: 废机油 | C13: 吨 | D13: ='2025年2季度固体废物管理台账'!H13 -> 2.83 | G13: 委托外单位处置 | H13: 6.58 | I13: 危废
A14: 12 | B14: 废三元 | C14: 吨 | D14: ='2025年2季度固体废物管理台账'!H14 -> 0.23 | G14: 委托外单位利用 | H14: 2.67 | I14: 危废
A15: 13 | B15: 其他危废 | C15: 吨 | D15: ='2025年2季度固体废物管理台账'!H15 -> 0.92 | G15: 委托外单位处置 | H15: 0.92 | I15: 危废
A16: 14 | B16: 废线路板 | C16: 吨 | D16: ='2025年2季度固体废物管理台账'!H16 -> 1.38 | G16: 委托外单位处置 | H16: 9.1 | I16: 危废
A17: 15 | B17: 废防冻液 | C17: 吨 | D17: ='2025年2季度固体废物管理台账'!H17 -> 4.23 | G17: 委托外单位处置 | H17: 5.43 | I17: 危废

Sheet 车辆2025年3季度 (hidden)
A1: 北京华新凯业物资再生有限公司2025年3季度报废车辆管理台账
A2: 序号 | B2: 车辆类别 | C2: 单位 | D2: 前期贮存量 | E2: 回收量 | F2: 处置量 | G2: 贮存量
A3: 1 | B3: 货车 | C3: 辆 | D3: =车辆2025年2季度!G3 -> 45 | G3: =D3+E3-F3 -> 45
A4: 2 | B4: 客车 | C4: 辆 | D4: =车辆2025年2季度!G4 -> 469 | G4: 469
A5: 3 | B5: 其他 | C5: 辆 | D5: =车辆2025年2季度!G5 -> 167 | G5: 88
B6: 总计 | C6: 辆 | D6: =SUM(D3:D5) -> 681 | E6: 0 | F6: 0 | G6: 602
B7: 摩托车 | C7: 辆 | D7: =车辆2025年2季度!G7 -> 160 | G7: 160
B8: 轮式或者履带式工程机械 | C8: 辆 | D8: =车辆2025年2季度!G8 -> 7
B9: 汽车 | C9: 辆 | D9: =D6-D7 -> 521 | E9: 0 | F9: 0 | G9: 442
D26: a

Sheet 2025年4季度固体废物管理台账 (hidden)
A1: 北京华新凯业物资再生有限公司2025年4季度固体废物管理台账
A2: 序号 | B2: 物料名称 | C2: 库存单位 | D2: 前期贮存量 | E2: 产生量 | F2: 处理量 | G2: 流向 | H2: 贮存量 | I2: 属性
A3: 1 | B3: 废锂电池 | C3: 吨 | D3: ='2025年3季度固体废物管理台账'!H3 -> 0 | G3: 委托外单位利用 | H3: =D3+E3-F3 -> 0
A4: 2 | B4: 废钢铁 | C4: 吨 | D4: ='2025年3季度固体废物管理台账'!H4 -> 325.69 | G4: 委托外单位利用 | H4: 325.69
A5: 3 | B5: 废铝 | C5: 吨 | D5: ='2025年3季度固体废物管理台账'!H5 -> 38.8 | G5: 委托外单位利用 | H5: 38.8
A6: 4 | B6: 废配件 | C6: 个 | D6: ='2025年3季度固体废物管理台账'!H6 -> 12275 | G6: 委托外单位利用 | H6: 12275
A7: 5 | B7: 废轮胎 | C7: 吨 | D7: ='2025年3季度固体废物管理台账'!H7 -> 2.2 | G7: 委托外单位利用 | H7: 2.2
A8: 6 | B8: 废塑料 | C8: 吨 | D8: ='2025年3季度固体废物管理台账'!H8 -> 17.88 | G8: 委托外单位利用 | H8: 17.88
A9: 7 | B9: 废铜 | C9: 吨 | D9: ='2025年3季度固体废物管理台账'!H9 -> 19.71 | G9: 委托外单位利用 | H9: 19.71
A10: 8 | B10: 废橡胶 | C10: 吨 | D10: ='2025年3季度固体废物管理台账'!H10 -> 4.93 | G10: 委托外单位利用 | H10: 4.93
A11: 9 | B11: 废杂料 | C11: 吨 | D11: ='2025年3季度固体废物管理台账'!H11 -> 12.28 | G11: 委托外单位利用 | H11: 12.28
A12: 10 | B12: 废铅酸蓄电池 | C12: 吨 | D12: ='2025年3季度固体废物管理台账'!H12 -> 37.97 | G12: 委托外单位利用 | H12: 37.97 | I12: 危废
A13: 11 | B13: 废机油 | C13: 吨 | D13: ='2025年3季度固体废物管理台账'!H13 -> 6.58 | G13: 委托外单位处置 | H13: 6.58 | I13: 危废
A14: 12 | B14: 废三元 | C14: 吨 | D14: ='2025年3季度固体废物管理台账'!H14 -> 2.67 | G14: 委托外单位利用 | H14: 2.67 | I14: 危废
A15: 13 | B15: 其他危废 | C15: 吨 | D15: ='2025年3季度固体废物管理台账'!H15 -> 0.92 | G15: 委托外单位处置 | H15: 0.92 | I15: 危废
A16: 14 | B16: 废线路板 | C16: 吨 | D16: ='2025年3季度固体废物管理台账'!H16 -> 9.1 | G16: 委托外单位处置 | H16: 9.1 | I16: 危废
A17: 15 | B17: 废防冻液 | C17: 吨 | D17: ='2025年3季度固体废物管理台账'!H17 -> 5.43 | G17: 委托外单位处置 | H17: 5.43 | I17: 危废

Sheet 车辆2025年4季度 (hidden)
A1: 北京华新凯业物资再生有限公司2025年4季度报废车辆管理台账
A2: 序号 | B2: 车辆类别 | C2: 单位 | D2: 前期贮存量 | E2: 回收量 | F2: 处置量 | G2: 贮存量
A3: 1 | B3: 货车 | C3: 辆 | D3: ='车辆2025年3季度 '!G3 -> 45 | G3: =D3+E3-F3 -> 45
A4: 2 | B4: 客车 | C4: 辆 | D4: ='车辆2025年3季度 '!G4 -> 469 | G4: 469
A5: 3 | B5: 其他 | C5: 辆 | D5: ='车辆2025年3季度 '!G5 -> 88 | G5: 88
B6: 总计 | C6: 辆 | D6: =SUM(D3:D5) -> 602 | E6: 0 | F6: 0 | G6: 602
B7: 摩托车 | C7: 辆 | D7: ='车辆2025年3季度 '!G7 -> 160 | G7: 160
B8: 轮式或者履带式工程机械 | C8: 辆 | D8: ='车辆2025年3季度 '!G8 -> 0 | G8: 0
B9: 汽车 | C9: 辆 | D9: =D6-D7 -> 442 | E9: 0 | F9: 0 | G9: 442
D26: a

Sheet 2021年固体废物管理台账 (hidden)
A1: 北京华新凯业物资再生有限公司2021年固体废物管理台账
A2: 序号 | B2: 物料名称 | C2: 库存单位 | D2: 前期贮存量 | E2: 产生量 | F2: 处理量 | G2: 流向 | H2: 贮存量 | I2: 属性
A3: 1 | B3: 废钢铁 | C3: 吨 | G3: 委托外单位利用
A4: 2 | B4: 废铝 | C4: 吨 | G4: 委托外单位利用
A5: 3 | B5: 废配件 | C5: 个 | G5: 委托外单位利用
A6: 4 | B6: 废轮胎 | C6: 个 | G6: 委托外单位利用
A7: 5 | B7: 废塑料 | C7: 吨 | G7: 委托外单位利用
A8: 6 | B8: 废铜 | C8: 吨 | G8: 委托外单位利用
A9: 7 | B9: 废橡胶 | C9: 吨 | G9: 委托外单位利用
A10: 8 | B10: 杂料库 | C10: 吨 | G10: 委托外单位利用
A11: 9 | B11: 电池 | C11: 吨 | G11: 委托单位利用 | I11: 危废
A12: 10 | B12: 机油 | C12: 吨 | G12: 委托外单位处置 | I12: 危废
A13: 11 | B13: 三元 | C13: 吨 | G13: 委托单位利用 | I13: 危废
A14: 12 | B14: 其他危废 | C14: 吨 | G14: 委托外单位处置 | I14: 危废
